fUST/lending_fUST_20241110
["ID","MTS","AMOUNT","RATE_DAILY","PERIOD"]
[341844945,1731251461451,-500.0,0.00027446,2]
[341844947,1731251461461,-519.71545275,0.00027446,2]
[341844949,1731251461471,-500.0,0.00027446,2]
[341844951,1731251461480,-386.51804338,0.00027446,2]
[341844953,1731251461489,-500.0,0.00027446,2]
[341844955,1731251461498,-500.0,0.00027446,2]
[341844957,1731251461507,-508.00110465,0.00027446,2]
[341844959,1731251461517,-500.0,0.00027446,2]
[341844961,1731251461526,-500.0,0.00027446,2]
[341844963,1731251461535,-500.0,0.00027446,2]
[341844965,1731251461544,-500.0,0.00027446,2]
[341844967,1731251461554,-500.0,0.00027446,2]
[341844969,1731251461563,-1186.11,0.00027446,2]
[341844971,1731251461572,-500.0,0.00027446,2]
[341844973,1731251461582,-682.43,0.00027446,2]
[341844975,1731251461591,-589.1555441,0.00027446,2]
[341844977,1731251461600,-500.0,0.00027446,2]
[341844979,1731251461609,-630.88,0.00027446,2]
[341844981,1731251461619,-500.0,0.00027446,2]
[341844983,1731251461628,-500.0,0.00027446,2]
[341844985,1731251461638,-500.0,0.00027446,2]
[341844987,1731251461648,-200.0,0.00027446,2]
[341844989,1731251461657,-581.454559,0.00027446,7]
[341844991,1731251461667,-500.0,0.00027446,2]
[341844993,1731251461676,-581.454559,0.00027446,7]
[341844995,1731251461686,-190.81479,0.00027446,7]
[341844997,1731251461695,-190.81479,0.00027446,7]
[341844999,1731251461704,-500.0,0.00027446,2]
[341845001,1731251461713,-500.0,0.00027446,2]
[341845003,1731251461725,-500.0,0.00027446,2]
[341845005,1731251461734,-500.0,0.00027446,2]
[341845007,1731251461743,-151.0,0.00027446,7]
[341845009,1731251461753,-500.0,0.00027446,2]
[341845011,1731251461762,-523.58,0.00027446,2]
[341845013,1731251461771,-500.0,0.00027446,2]
[341845015,1731251461781,-500.0,0.00027446,2]
[341845017,1731251461790,-500.0,0.00027446,2]
[341845019,1731251461799,-500.0,0.00027446,2]
[341845021,1731251461809,-500.0,0.00027447,2]
[341845023,1731251461819,-500.0,0.00027447,2]
[341845025,1731251461828,-500.0,0.00027447,2]
[341845027,1731251461838,-503.02956371,0.00027447,2]
[341845029,1731251461847,-151.0,0.00027447,7]
[341845031,1731251461857,-639.222275,0.00027447,7]
[341845033,1731251461866,-639.222275,0.00027447,7]
[341845035,1731251461876,-932.900632,0.00027447,7]
[341845037,1731251461885,-932.900632,0.00027447,7]
[341845039,1731251461894,-151.0,0.00027447,7]
[341845041,1731251461904,-3399.721799,0.00027447,7]
[341845043,1731251461912,-151.0,0.00027447,7]
[341845045,1731251461922,-3399.721799,0.00027447,7]
[341845047,1731251461932,-329.349078,0.00027447,7]
[341845049,1731251461942,-329.349078,0.00027447,7]
[341845051,1731251461951,-151.0,0.00027447,7]
[341845053,1731251461961,-257.304202,0.00027447,7]
[341845055,1731251461972,-674.851497,0.00027447,7]
[341845057,1731251461982,-257.304202,0.00027447,7]
[341845059,1731251461992,-674.851497,0.00027447,7]
[341845061,1731251462002,-246.088511,0.00027447,7]
[341845063,1731251462012,-246.088511,0.00027447,7]
[341845065,1731251462022,-579.9455461,0.00027498,5]
[341845067,1731251462031,-7449.61,0.000275,30]
[341845069,1731251462040,-150.112233,0.000275,16]
[341845071,1731251462049,-384.083894,0.00027595,7]
[341845073,1731251462059,-384.083894,0.00027595,7]
[341845075,1731251462069,-384.083894,0.00027595,7]
[341845077,1731251462078,-384.083894,0.00027595,7]
[341845079,1731251462087,-151.0,0.00027595,7]
[341845081,1731251462097,-151.536532,0.00027595,7]
[341845083,1731251462109,-500.0,0.00027596,2]
[341845085,1731251462118,-500.0,0.00027596,2]
[341845087,1731251462128,-160.0,0.00027596,10]
[341845089,1731251462137,-384.083894,0.00027597,7]
[341845091,1731251462147,-384.083894,0.00027597,7]
[341845093,1731251462156,-384.083894,0.00027597,7]
[341845095,1731251462165,-384.083894,0.00027597,7]
[341845097,1731251462176,-384.083894,0.00027597,7]
[341845099,1731251462186,-384.083894,0.00027597,7]
[341845101,1731251462195,-500.0,0.00027597,2]
[341845103,1731251462205,-293.194669,0.00027597,7]
[341845105,1731251462214,-293.194669,0.00027597,7]
[341845107,1731251462225,-292.073552,0.00027597,7]
[341845108,1731251462235,-292.073552,0.00027597,7]
[341845110,1731251462245,-151.0,0.00027597,7]
[341845113,1731251462255,-856.517534,0.00027597,7]
[341845115,1731251462265,-856.517534,0.00027597,7]
[341845116,1731251462274,-151.0,0.00027597,7]
[341845118,1731251462283,-3821.320072,0.00027597,7]
[341845120,1731251462292,-151.0,0.00027597,7]
[341845122,1731251462302,-3821.320072,0.00027597,7]
[341845124,1731251462311,-355.493892,0.00027597,2]
[341845126,1731251462321,-355.493892,0.00027597,2]
[341845128,1731251462331,-2020.904124,0.00027597,7]
[341845130,1731251462341,-2020.904124,0.00027597,7]
[341845132,1731251462350,-151.0,0.00027597,7]
[341845134,1731251462359,-2635.512469,0.00027597,7]
[341845136,1731251462369,-2635.512469,0.00027597,7]
[341845138,1731251462378,-151.0,0.00027597,7]
[341845140,1731251462387,-151.0,0.00027597,7]
[341845142,1731251462397,-267.006595,0.00027597,7]
[341845144,1731251462406,-1245.356628,0.00027597,7]
[341845146,1731251462416,-1245.356628,0.00027597,7]
[341845148,1731251462426,-3561.0,0.00027599,4]
[341845150,1731251462435,-634.55,0.00027658,2]
[341845152,1731251462445,-11495.75,0.00027658,2]
[341845154,1731251462454,-981.28,0.00027658,2]
[341845156,1731251462463,-1630.44,0.00027658,2]
[341845158,1731251462475,-500.0,0.00027658,2]
[341845161,1731251462487,-25462.06,0.00027658,2]
[341845162,1731251462497,-709.3,0.00027658,2]
[341845165,1731251462507,-500.0,0.00027667,2]
[341845167,1731251462516,-500.0,0.00027667,2]
[341845168,1731251462526,-500.0,0.00027667,2]
[341845170,1731251462535,-765.65,0.00027667,2]
[341845172,1731251462544,-500.0,0.00027667,2]
[341845174,1731251462554,-623.28,0.00027667,2]
[341845176,1731251462563,-500.0,0.00027667,2]
[341845178,1731251462573,-500.0,0.00027667,2]
[341845180,1731251462582,-808.18,0.00027667,2]
[341845182,1731251462592,-500.0,0.00027667,2]
[341845184,1731251462601,-1260.82,0.00027668,2]
[341845186,1731251462610,-151.0,0.00027668,7]
[341845188,1731251462620,-500.0,0.00027668,2]
[341845190,1731251462629,-840.8,0.00027668,2]
[341845192,1731251462638,-296.600387,0.00027668,7]
[341845194,1731251462648,-824.95,0.00027668,2]
[341845196,1731251462657,-712.0,0.00027668,2]
[341845198,1731251462668,-500.0,0.00027668,2]
[341845200,1731251462677,-151.0,0.00027668,7]
[341845202,1731251462687,-738.38,0.00027668,2]
[341845204,1731251462696,-154.493816,0.00027668,7]
[341845206,1731251462705,-2189.89,0.00027668,2]
[341845208,1731251462715,-2323.190952,0.00027668,7]
[341845210,1731251462726,-2323.190952,0.00027668,7]
[341845212,1731251462735,-1207.73,0.00027668,2]
[341845214,1731251462744,-500.0,0.00027668,2]
[341845216,1731251462754,-500.0,0.00027668,2]
[341845218,1731251462763,-2541.78,0.00027668,2]
[341845220,1731251462772,-500.0,0.00027668,2]
[341845222,1731251462781,-500.0,0.00027668,2]
[341845224,1731251462790,-1015.18,0.00027668,2]
[341845226,1731251462800,-1347.26,0.00027668,2]
[341845228,1731251462809,-500.0,0.00027668,2]
[341845230,1731251462818,-500.0,0.00027668,2]
[341845232,1731251462828,-500.0,0.00027668,2]
[341845234,1731251462838,-500.0,0.00027668,2]
[341845236,1731251462847,-1006.28,0.00027668,2]
[341845238,1731251462857,-1075.13,0.00027668,2]
[341845241,1731251462867,-500.0,0.00027668,2]
[341845243,1731251462877,-500.0,0.00027668,2]
[341845244,1731251462886,-2462.91,0.00027668,2]
[341845247,1731251462895,-1440.28,0.00027668,2]
[341845248,1731251462905,-2383.89,0.00027668,2]
[341845250,1731251462915,-532.07,0.00027668,2]
[341845252,1731251462924,-500.0,0.00027668,2]
[341845255,1731251462934,-1715.03,0.00027668,2]
[341845257,1731251462943,-500.0,0.00027668,2]
[341845258,1731251462952,-151.0,0.00027668,7]
[341845261,1731251462962,-500.0,0.00027668,2]
[341845263,1731251462972,-1504.508038,0.00027668,7]
[341845265,1731251462982,-500.07,0.00027668,2]
[341845267,1731251462992,-1504.508038,0.00027668,7]
[341845269,1731251463001,-788.08,0.00027668,2]
[341845271,1731251463011,-1021.831594,0.00027668,7]
[341845273,1731251463020,-500.0,0.00027668,2]
[341845275,1731251463029,-1021.831594,0.00027668,7]
[341845277,1731251463039,-658.33,0.00027668,2]
[341845279,1731251463049,-998.39,0.00027668,2]
[341845280,1731251463058,-1038.74,0.00027668,2]
[341845283,1731251463068,-766.99,0.00027668,2]
[341845285,1731251463078,-500.0,0.00027668,2]
[341845287,1731251463089,-500.0,0.00027668,2]
[341845289,1731251463101,-500.0,0.00027668,2]
[341845291,1731251463113,-500.0,0.00027668,2]
[341845293,1731251463123,-500.0,0.00027668,2]
[341845295,1731251463133,-500.0,0.00027668,2]
[341845297,1731251463143,-500.0,0.00027668,2]
[341845299,1731251463153,-719.43,0.00027668,2]
[341845301,1731251463163,-500.0,0.00027668,2]
[341845303,1731251463173,-500.0,0.00027668,2]
[341845305,1731251463183,-500.0,0.00027668,2]
[341845307,1731251463195,-500.0,0.00027668,2]
[341845309,1731251463205,-2739.87,0.00027668,2]
[341845311,1731251463215,-500.0,0.00027668,2]
[341845313,1731251463227,-581.454559,0.00027668,7]
[341845315,1731251463237,-151.0,0.00027668,7]
[341845317,1731251463247,-716.87,0.00027668,2]
[341845319,1731251463257,-581.454559,0.00027668,7]
[341845321,1731251463267,-3218.147499,0.00027668,7]
[341845323,1731251463277,-3218.147499,0.00027668,7]
[341845325,1731251463287,-500.0,0.00027668,2]
[341845327,1731251463296,-500.0,0.00027668,2]
[341845329,1731251463306,-500.0,0.00027668,2]
[341845331,1731251463316,-500.0,0.00027668,2]
[341845333,1731251463326,-500.0,0.00027668,2]
[341845335,1731251463336,-151.0,0.00027668,7]
[341845337,1731251463347,-500.0,0.00027668,2]
[341845339,1731251463357,-8203.9,0.00027668,2]
[341845341,1731251463367,-2267.48,0.00027668,2]
[341845343,1731251463377,-500.0,0.00027668,2]
[341845346,1731251463386,-661.19,0.00027668,2]
[341845347,1731251463396,-1972.07,0.00027668,2]
[341845350,1731251463407,-500.0,0.00027668,2]
[341845351,1731251463416,-647.77,0.00027668,2]
[341845354,1731251463426,-993.31,0.00027669,2]
[341845355,1731251463436,-2249.63,0.00027669,2]
[341845357,1731251463446,-500.0,0.00027669,2]
[341845360,1731251463455,-500.0,0.00027669,2]
[341845361,1731251463465,-265.144848,0.00027669,7]
[341845363,1731251463476,-265.144848,0.00027669,7]
[341845365,1731251463485,-151.0,0.00027669,7]
[341845367,1731251463495,-268.783875,0.00027669,7]
[341845369,1731251463505,-268.783875,0.00027669,7]
[341845372,1731251463515,-500.0,0.00027669,2]
[341845373,1731251463525,-564.98569172,0.00027669,2]
[341845375,1731251463534,-531.33,0.00027669,2]
[341845377,1731251463544,-500.0,0.00027669,2]
[341845379,1731251463553,-500.0,0.00027669,2]
[341845381,1731251463563,-500.0,0.00027669,2]
[341845383,1731251463573,-1433.38,0.00027669,2]
[341845385,1731251463583,-500.0,0.00027669,2]
[341845387,1731251463593,-864.8,0.00027669,2]
[341845390,1731251463603,-500.0,0.00027669,2]
[341845391,1731251463613,-500.0,0.00027669,2]
[341845393,1731251463623,-2054.95,0.00027669,2]
[341845396,1731251463633,-1319.9,0.00027669,2]
[341845397,1731251463643,-535.71,0.00027669,2]
[341845398,1731251463653,-7430.06,0.00027669,2]
[341845399,1731251463663,-500.0,0.00027669,2]
[341845400,1731251463673,-2525.55,0.00027669,2]
[341845401,1731251463683,-598.91,0.00027669,2]
[341845402,1731251463692,-190.81479,0.00027669,7]
[341845403,1731251463702,-190.81479,0.00027669,7]
[341845404,1731251463712,-151.0,0.00027669,7]
[341845405,1731251463723,-500.0,0.00027669,2]
[341845406,1731251463732,-500.0,0.00027669,2]
[341845407,1731251463742,-637.12773265,0.00027669,2]
[341845408,1731251463752,-895.15,0.00027669,2]
[341845409,1731251463763,-3361.2,0.00027671,2]
[341845411,1731251463772,-2010.89,0.00027671,2]
[341845413,1731251463782,-263.61815556,0.00027689,5]
[341845415,1731251463792,-347.29956438,0.00027689,5]
[341845417,1731251463802,-160.0,0.00027719,10]
[341845419,1731251463812,-384.083894,0.0002772,7]
[341845421,1731251463822,-384.083894,0.0002772,7]
[341845435,1731251463932,-500.0,0.0002772,2]
[341845438,1731251463961,-500.0,0.0002772,2]
[341845440,1731251463973,-500.0,0.0002772,2]
[341845442,1731251463984,-500.0,0.0002772,2]
[341845444,1731251463994,-504.29,0.0002772,2]
[341845446,1731251464004,-500.0,0.0002772,2]
[341845448,1731251464014,-677.67,0.0002772,2]
[341845450,1731251464024,-500.0,0.0002772,2]
[341845452,1731251464035,-516.78622754,0.0002772,2]
[341845454,1731251464045,-500.0,0.0002772,2]
[341845456,1731251464055,-504.58562343,0.0002772,2]
[341845458,1731251464064,-358.23454452,0.0002772,2]
[341845460,1731251464075,-500.0,0.0002772,2]
[341845462,1731251464085,-500.0,0.0002772,2]
[341845464,1731251464095,-151.0,0.0002772,7]
[341845466,1731251464106,-500.0,0.0002772,2]
[341845468,1731251464120,-527.42,0.0002772,2]
[341845470,1731251464130,-507.74045192,0.0002772,2]
[341845472,1731251464140,-169.49058404,0.0002772,2]
[341845474,1731251464149,-512.24,0.0002772,2]
[341845477,1731251464160,-500.0,0.0002772,2]
[341845478,1731251464170,-500.0,0.0002772,2]
[341845480,1731251464180,-558.62,0.0002772,2]
[341845483,1731251464190,-1000.0,0.0002772,2]
[341845485,1731251464200,-500.0,0.0002772,2]
[341845487,1731251464211,-500.0,0.0002772,2]
[341845489,1731251464221,-528.67,0.0002772,2]
[341845491,1731251464233,-500.0,0.0002772,2]
[341845492,1731251464243,-500.0,0.0002772,2]
[341845495,1731251464253,-500.0,0.0002772,2]
[341845497,1731251464263,-500.0,0.0002772,2]
[341845498,1731251464273,-786.74,0.0002772,2]
[341845501,1731251464282,-822.97,0.0002772,2]
[341845503,1731251464292,-500.0,0.0002772,2]
[341845505,1731251464302,-552.40474814,0.0002772,2]
[341845507,1731251464311,-500.0,0.0002772,2]
[341845509,1731251464322,-853.36,0.0002772,2]
[341845511,1731251464331,-730.28,0.0002772,2]
[341845513,1731251464341,-500.0,0.0002772,2]
[341845515,1731251464351,-500.0,0.0002772,2]
[341845517,1731251464361,-500.0,0.0002772,2]
[341845519,1731251464371,-151.0,0.0002772,7]
[341845521,1731251464381,-567.27,0.0002772,15]
[341845523,1731251464390,-151.0,0.0002772,7]
[341845525,1731251464401,-500.0,0.0002772,2]
[341845527,1731251464411,-500.0,0.0002772,2]
[341845529,1731251464421,-3523.39,0.0002772,2]
[341845531,1731251464430,-151.0,0.0002772,7]
[341845533,1731251464440,-500.0,0.0002772,2]
[341845535,1731251464450,-639.222275,0.0002772,7]
[341845537,1731251464459,-639.222275,0.0002772,7]
[341845539,1731251464469,-490.07044243,0.0002772,2]
[341845541,1731251464481,-500.0,0.0002772,2]
[341845543,1731251464491,-350.9487335,0.0002772,2]
[341845545,1731251464501,-932.900632,0.0002772,7]
[341845547,1731251464510,-932.900632,0.0002772,7]
[341845549,1731251464520,-151.0,0.0002772,7]
[341845551,1731251464530,-3399.721799,0.0002772,7]
[341845553,1731251464540,-151.0,0.0002772,7]
[341845555,1731251464550,-3399.721799,0.0002772,7]
[341845557,1731251464560,-500.0,0.0002772,2]
[341845559,1731251464570,-329.349078,0.0002772,7]
[341845561,1731251464579,-500.0,0.0002772,2]
[341845563,1731251464589,-329.349078,0.0002772,7]
[341845565,1731251464599,-547.45815767,0.0002772,2]
[341845567,1731251464608,-500.0,0.0002772,2]
[341845569,1731251464618,-500.0,0.0002772,2]
[341845571,1731251464628,-151.0,0.0002772,7]
[341845573,1731251464637,-500.0,0.0002772,2]
[341845575,1731251464646,-500.0,0.0002772,2]
[341845577,1731251464655,-257.304202,0.0002772,7]
[341845579,1731251464665,-674.851497,0.0002772,7]
[341845581,1731251464674,-257.304202,0.0002772,7]
[341845583,1731251464683,-500.0,0.0002772,2]
[341845585,1731251464693,-1186.11,0.0002772,2]
[341845587,1731251464703,-674.851497,0.0002772,7]
[341845589,1731251464713,-500.0,0.0002772,2]
[341845591,1731251464723,-682.43,0.0002772,2]
[341845593,1731251464733,-500.0,0.0002772,2]
[341845595,1731251464743,-630.88,0.0002772,2]
[341845597,1731251464752,-500.0,0.0002772,2]
[341845598,1731251464761,-500.0,0.0002772,2]
[341845600,1731251464771,-500.0,0.0002772,2]
[341845602,1731251464782,-200.0,0.0002772,2]
[341845605,1731251464792,-246.088511,0.0002772,7]
[341845606,1731251464802,-246.088511,0.0002772,7]
[341845609,1731251464812,-500.0,0.0002772,2]
[341845610,1731251464822,-500.0,0.0002772,2]
[341845612,1731251464832,-500.0,0.0002772,2]
[341845614,1731251464841,-500.0,0.0002772,2]
[341845616,1731251464851,-500.0,0.0002772,2]
[341845618,1731251464860,-500.0,0.0002772,2]
[341845620,1731251464869,-523.58,0.0002772,2]
[341845622,1731251464879,-500.0,0.0002772,2]
[341845624,1731251464888,-172.47064557,0.0002772,2]
[341845626,1731251464898,-500.0,0.0002772,2]
[341845628,1731251464907,-455.09859796,0.0002772,2]
[341845630,1731251464917,-500.0,0.00027721,2]
[341845632,1731251464926,-508.45732262,0.00027721,2]
[341845634,1731251464936,-646.82615551,0.00027721,2]
[341845636,1731251464945,-1245.356628,0.00027721,7]
[341845638,1731251464955,-1245.356628,0.00027721,7]
[341845640,1731251464964,-432.32659231,0.0002787,2]
[341845642,1731251464974,-384.083894,0.00027871,7]
[341845644,1731251464983,-384.083894,0.00027871,7]
[341845646,1731251464992,-384.083894,0.00027871,7]
[341845648,1731251465003,-384.083894,0.00027871,7]
[341845650,1731251465012,-384.083894,0.00027871,7]
[341845652,1731251465022,-384.083894,0.00027871,7]
[341845654,1731251465032,-500.0,0.00027871,2]
[341845656,1731251465041,-293.194669,0.00027871,7]
[341845658,1731251465051,-293.194669,0.00027871,7]
[341845660,1731251465060,-292.073552,0.00027871,7]
[341845662,1731251465069,-292.073552,0.00027871,7]
[341845664,1731251465079,-151.0,0.00027871,7]
[341845666,1731251465089,-856.517534,0.00027871,7]
[341845668,1731251465099,-856.517534,0.00027871,7]
[341845670,1731251465111,-3821.320072,0.00027871,7]
[341845672,1731251465121,-151.0,0.00027871,7]
[341845674,1731251465130,-3821.320072,0.00027871,7]
[341845676,1731251465140,-151.0,0.00027871,7]
[341845678,1731251465150,-355.493892,0.00027871,2]
[341845680,1731251465159,-355.493892,0.00027871,2]
[341845682,1731251465169,-2020.904124,0.00027871,7]
[341845684,1731251465179,-2020.904124,0.00027871,7]
[341845686,1731251465189,-151.0,0.00027871,7]
[341845688,1731251465199,-151.0,0.00027871,7]
[341845690,1731251465208,-2323.190952,0.00027871,7]
[341845691,1731251465218,-2323.190952,0.00027871,7]
[341845693,1731251465229,-2635.512469,0.00027871,7]
[341845695,1731251465239,-2635.512469,0.00027871,7]
[341845698,1731251465249,-151.0,0.00027871,7]
[341845700,1731251465259,-1504.508038,0.00027871,7]
[341845702,1731251465269,-1504.508038,0.00027871,7]
[341845704,1731251465279,-3218.147499,0.00027871,7]
[341845706,1731251465289,-3218.147499,0.00027871,7]
[341845708,1731251465298,-634.55,0.00027932,2]
[341845710,1731251465308,-11495.75,0.00027932,2]
[341845711,1731251465318,-981.28,0.00027932,2]
[341845713,1731251465327,-1630.44,0.00027932,2]
[341845715,1731251465337,-500.0,0.00027932,2]
[341845717,1731251465346,-25462.06,0.00027932,2]
[341845719,1731251465356,-709.3,0.00027932,2]
[341845721,1731251465366,-500.0,0.00027941,2]
[341845723,1731251465376,-500.0,0.00027941,2]
[341845725,1731251465386,-500.0,0.00027941,2]
[341845727,1731251465396,-765.65,0.00027941,2]
[341845729,1731251465405,-500.0,0.00027941,2]
[341845731,1731251465414,-623.28,0.00027941,2]
[341845733,1731251465423,-500.0,0.00027941,2]
[341845735,1731251465432,-500.0,0.00027941,2]
[341845737,1731251465442,-808.18,0.00027941,2]
[341845739,1731251465451,-500.0,0.00027941,2]
[341845741,1731251465461,-1260.82,0.00027942,2]
[341845743,1731251465471,-500.0,0.00027942,2]
[341845745,1731251465483,-840.8,0.00027942,2]
[341845747,1731251465493,-824.95,0.00027942,2]
[341845749,1731251465503,-712.0,0.00027942,2]
[341845751,1731251465513,-500.0,0.00027942,2]
[341845753,1731251465523,-738.38,0.00027942,2]
[341845755,1731251465532,-2189.89,0.00027942,2]
[341845757,1731251465541,-1207.73,0.00027942,2]
[341845759,1731251465551,-500.0,0.00027942,2]
[341845761,1731251465560,-385.22328576,0.00027942,2]
[341845763,1731251465570,-2541.78,0.00027942,2]
[341845765,1731251465580,-500.0,0.00027942,2]
[341845767,1731251465589,-500.0,0.00027942,2]
[341845769,1731251465599,-1015.18,0.00027942,2]
[341845771,1731251465608,-1347.26,0.00027942,2]
[341845773,1731251465617,-500.0,0.00027942,2]
[341845775,1731251465626,-500.0,0.00027942,2]
[341845777,1731251465636,-500.0,0.00027942,2]
[341845779,1731251465645,-500.0,0.00027942,2]
[341845781,1731251465656,-1006.28,0.00027942,2]
[341845783,1731251465666,-1075.13,0.00027942,2]
[341845785,1731251465675,-500.0,0.00027942,2]
[341845787,1731251465684,-500.0,0.00027942,2]
[341845789,1731251465694,-2462.91,0.00027942,2]
[341845791,1731251465703,-1440.28,0.00027942,2]
[341845793,1731251465712,-2383.89,0.00027942,2]
[341845795,1731251465721,-532.07,0.00027942,2]
[341845797,1731251465736,-500.0,0.00027942,2]
[341845799,1731251465746,-1715.03,0.00027942,2]
[341845801,1731251465754,-500.0,0.00027942,2]
[341845803,1731251465764,-500.0,0.00027942,2]
[341845805,1731251465774,-500.07,0.00027942,2]
[341845807,1731251465783,-788.08,0.00027942,2]
[341845809,1731251465793,-1021.831594,0.00027942,7]
[341845811,1731251465802,-1021.831594,0.00027942,7]
[341845813,1731251465812,-500.0,0.00027942,2]
[341845815,1731251465822,-658.33,0.00027942,2]
[341845817,1731251465831,-998.39,0.00027942,2]
[341845819,1731251465841,-1038.74,0.00027942,2]
[341845821,1731251465850,-766.99,0.00027942,2]
[341845823,1731251465860,-500.0,0.00027942,2]
[341845825,1731251465869,-500.0,0.00027942,2]
[341845827,1731251465879,-500.0,0.00027942,2]
[341845829,1731251465888,-500.0,0.00027942,2]
[341845831,1731251465897,-500.0,0.00027942,2]
[341845833,1731251465908,-500.0,0.00027942,2]
[341845835,1731251465918,-500.0,0.00027942,2]
[341845837,1731251465927,-719.43,0.00027942,2]
[341845839,1731251465936,-500.0,0.00027942,2]
[341845841,1731251465947,-500.0,0.00027942,2]
[341845843,1731251465956,-500.0,0.00027942,2]
[341845845,1731251465966,-500.0,0.00027942,2]
[341845847,1731251465979,-2739.87,0.00027942,2]
[341845849,1731251465989,-500.0,0.00027942,2]
[341845851,1731251466000,-581.454559,0.00027942,7]
[341845853,1731251466009,-151.0,0.00027942,7]
[341845855,1731251466019,-716.87,0.00027942,2]
[341845857,1731251466028,-581.454559,0.00027942,7]
[341845859,1731251466037,-190.81479,0.00027942,7]
[341845861,1731251466047,-190.81479,0.00027942,7]
[341845863,1731251466057,-415.5188325,0.00027942,2]
[341845865,1731251466066,-500.0,0.00027942,2]
[341845867,1731251466076,-500.0,0.00027942,2]
[341845869,1731251466085,-151.0,0.00027942,7]
[341845870,1731251466094,-500.0,0.00027942,2]
[341845871,1731251466104,-500.0,0.00027942,2]
[341845872,1731251466118,-151.0,0.00027942,7]
[341845873,1731251466128,-500.0,0.00027942,2]
[341845874,1731251466138,-8203.9,0.00027942,2]
[341845875,1731251466147,-2267.48,0.00027942,2]
[341845876,1731251466157,-500.0,0.00027942,2]
[341845877,1731251466167,-661.19,0.00027942,2]
[341845878,1731251466176,-1972.07,0.00027942,2]
[341845879,1731251466187,-500.0,0.00027942,2]
[341845880,1731251466197,-647.77,0.00027942,2]
[341845881,1731251466207,-993.31,0.00027943,2]
[341845882,1731251466216,-2249.63,0.00027943,2]
[341845883,1731251466228,-500.0,0.00027943,2]
[341845884,1731251466237,-500.0,0.00027943,2]
[341845885,1731251466247,-265.144848,0.00027943,7]
[341845886,1731251466256,-265.144848,0.00027943,7]
[341845887,1731251466265,-151.0,0.00027943,7]
[341845888,1731251466275,-268.783875,0.00027943,7]
[341845889,1731251466285,-268.783875,0.00027943,7]
[341845890,1731251466294,-500.0,0.00027943,2]
[341845891,1731251466304,-531.33,0.00027943,2]
[341845892,1731251466313,-500.0,0.00027943,2]
[341845893,1731251466323,-500.0,0.00027943,2]
[341845894,1731251466332,-500.0,0.00027943,2]
[341845895,1731251466342,-151.0,0.00027943,7]
[341845896,1731251466351,-1433.38,0.00027943,2]
[341845897,1731251466360,-639.222275,0.00027943,7]
[341845898,1731251466370,-500.0,0.00027943,2]
[341845899,1731251466379,-639.222275,0.00027943,7]
[341845900,1731251466388,-864.8,0.00027943,2]
[341845901,1731251466398,-500.0,0.00027943,2]
[341845902,1731251466407,-932.900632,0.00027943,7]
[341845903,1731251466415,-500.0,0.00027943,2]
[341845904,1731251466425,-932.900632,0.00027943,7]
[341845905,1731251466434,-151.0,0.00027943,7]
[341845906,1731251466443,-3399.721799,0.00027943,7]